fUST/lending_fUST_20260311
["ID","MTS","AMOUNT","RATE_DAILY","PERIOD"]
[408143440,1773171046271,-500.0,6.443e-05,2]
[408143441,1773171046280,-500.0,6.443e-05,2]
[408143442,1773171046289,-1898.18310828,6.462e-05,2]
[408143443,1773171046677,2172.85039223,6e-05,2]
[408143481,1773172145142,-5000.0,2.08e-05,2]
[408143482,1773172145164,-5000.0,2.101e-05,2]
[408143483,1773172145185,-300.0,2.12e-05,2]
[408143484,1773172145206,-5000.0,2.122e-05,2]
[408143485,1773172145229,-1200.0,2.164e-05,2]
[408143486,1773172145251,-113.79045749,2.175e-05,2]
[408143487,1773172146103,-186.20954251,2.175e-05,2]
[408143488,1773172146125,-300.0,2.175e-05,2]
[408143489,1773172146148,-294.41746845,2.176e-05,2]
[408143490,1773172146170,-2885.64,2.3e-05,2]
[408143491,1773172146192,-248.98,2.3e-05,2]
[408143492,1773172146214,-420.0,2.332e-05,2]
[408143493,1773172146235,-1642.0,2.38e-05,2]
[408143494,1773172146255,-409.0,2.392e-05,2]
[408143495,1773172146281,-350.0,2.392e-05,2]
[408143496,1773172146303,-587.0,2.565e-05,2]
[408143497,1773172146325,-250.0,2.704e-05,2]
[408143498,1773172146346,-823.0,2.822e-05,2]
[408143499,1773172146368,-144.63439686,3.104e-05,2]
[408143500,1773172152090,-5000.0,3.073e-05,2]
[408143501,1773172152111,-166.64534097,3.104e-05,2]
[408143537,1773172232428,-5000.0,2.883e-05,2]
[408143538,1773172232438,-258.43695464,2.912e-05,2]
[408143539,1773172232447,-1382.69365887,3.042e-05,2]
[408143540,1773172232457,-300.0,3.072e-05,2]
[408143541,1773172232466,-5000.0,3.073e-05,2]
[408143542,1773172232475,-288.52911908,3.089e-05,2]
[408143543,1773172232485,-383.0,3.379e-05,2]
[408143544,1773172232494,-8013.82704448,5e-05,2]
[408143545,1773172232503,-340.46436052,5.089e-05,2]
[408143546,1773172232512,-1674.6964481,5.093e-05,2]
[408143547,1773172232522,-4215.5130306,5.1e-05,2]
[408143560,1773172238250,-11989.12744275,5.1e-05,2]
[408143562,1773172238259,-11229.92085063,5.2e-05,2]
[408143564,1773172238271,-1982.72487331,5.2e-05,2]
[408143775,1773172240640,-389.9284953,5.049e-05,2]
[408144067,1773172243270,-4610.0715047,5.049e-05,2]
[408144069,1773172243280,-4998.82480849,5.2e-05,2]
[408144071,1773172243289,-13635.24787548,5.3e-05,2]
[408144344,1773172246153,-3172.16201955,5.3e-05,2]
[408144351,1773172246207,-3002.15771617,5.3e-05,2]
[408144353,1773172246217,-315.92184041,5.5e-05,2]
[408144355,1773172246226,-1023.520204,5.5e-05,2]
[408144357,1773172246235,-3938.67065819,5.606e-05,2]
[408144829,1773172689918,160.5761065,1.848e-05,2]
[408144832,1773172829000,-1305.03891089,3.471e-05,2]
[408144883,1773173244104,-2648.51827078,3.268e-05,2]
[408144897,1773173350092,-2351.48172922,3.268e-05,2]
[408144898,1773173350115,-5000.0,3.301e-05,2]
[408144899,1773173350140,-282.49488946,3.351e-05,2]
[408144900,1773173350162,-1200.0,3.367e-05,2]
[408144901,1773173350184,-300.0,3.47e-05,2]
[408144902,1773173350206,-300.0,3.47e-05,2]
[408144903,1773173350227,-4638.04960721,3.471e-05,2]
[408144904,1773173350248,-1200.0,3.704e-05,2]
[408144905,1773173350271,-420.0,3.817e-05,2]
[408144906,1773173350293,-854.72684,3.962e-05,2]
[408144907,1773173350315,-854.72684,4.129e-05,2]
[408144908,1773173350337,-180.0,4.198e-05,2]
[408144909,1773173350360,-854.72684,4.296e-05,2]
[408144910,1773173350382,-6182.63001411,4.308e-05,2]
[408144911,1773173354114,-1551.92774589,4.308e-05,2]
[408144912,1773173354137,-854.72684,4.463e-05,2]
[408144913,1773173354162,-854.72684,4.629e-05,2]
[408144914,1773173354183,-854.72684,4.796e-05,2]
[408144915,1773173354204,-7734.55776,4.864e-05,2]
[408144916,1773173354226,-333.34396957,5.351e-05,2]
[408144917,1773173354246,-500.0,5.363e-05,2]
[408144918,1773173354267,-112.29288301,5.363e-05,2]
[408144919,1773173371266,168.115206,3.369e-05,120]
[408145055,1773173438575,-168.115206,3.369e-05,2]
[408145058,1773173438585,-3849.74225393,5.256e-05,2]
[408145062,1773173438594,-5000.0,5.309e-05,2]
[408145064,1773173438603,-387.70711699,5.363e-05,2]
[408145066,1773173438613,-500.0,5.363e-05,2]
[408145068,1773173438622,-500.0,5.363e-05,2]
[408145070,1773173438632,-500.0,5.363e-05,2]
[408145072,1773173438645,-500.0,5.363e-05,2]
[408145074,1773173438655,-500.0,5.363e-05,2]
[408145076,1773173438665,-500.0,5.363e-05,2]
[408145078,1773173438675,-500.0,5.363e-05,2]
[408145080,1773173438684,-500.0,5.363e-05,2]
[408145082,1773173438693,-501.87658063,5.363e-05,2]
[408145084,1773173438703,-500.0,5.363e-05,2]
[408145086,1773173438713,-500.0,5.363e-05,2]
[408145088,1773173438722,-500.0,5.363e-05,2]
[408145089,1773173438735,-500.0,5.363e-05,2]
[408145091,1773173438745,-200.0,5.363e-05,2]
[408145093,1773173438754,-500.0,5.363e-05,2]
[408145095,1773173438763,-10800.333489,5.382e-05,2]
[408145331,1773173440867,-530.49760276,5.382e-05,2]
[408145349,1773173441007,-294.27980787,5.382e-05,2]
[408145351,1773173441018,-26718.64604906,5.382e-05,2]
[408145885,1773173446454,-16972.82009051,5.382e-05,2]
[408145887,1773173446465,-15240.64,5.382e-05,2]
[408146166,1773174092047,2000.0,0.000102,120]
[408146176,1773174430190,-329.93170199,4.771e-05,2]
[408146177,1773174564132,-4670.06829801,4.771e-05,2]
[408146178,1773174564155,-1510.89831629,4.819e-05,2]
[408146240,1773174632200,-5000.0,4.723e-05,2]
[408146242,1773174632210,-3384.73094831,4.771e-05,2]
[408146244,1773174632219,-275.49315988,4.892e-05,2]
[408146246,1773174632229,-1200.0,4.915e-05,2]
[408146249,1773174632238,-500.0,5.163e-05,2]
[408146251,1773174632248,-500.0,5.163e-05,2]
[408146253,1773174632258,-500.0,5.163e-05,2]
[408146255,1773174632268,-500.0,5.163e-05,2]
[408146257,1773174632277,-500.0,5.163e-05,2]
[408146259,1773174632287,-500.0,5.163e-05,2]
[408146261,1773174632296,-824.25276184,5.182e-05,2]
[408146317,1773174638008,-36.659078,5.131e-05,2]
[408146719,1773174642761,-586.64428478,5.131e-05,2]
[408146721,1773174642771,-4376.69663722,5.131e-05,2]
[408146723,1773174642781,-1484.46423223,5.131e-05,2]
[408146725,1773174642790,-34229.5652613,5.23e-05,2]
[408146727,1773174642800,-500.0,5.263e-05,2]
[408146729,1773174642809,-224.496652,5.263e-05,2]
[408146731,1773174642818,-1483.4063588,5.329e-05,2]
[408146733,1773174642827,-991.74423663,5.4e-05,2]
[408146735,1773174642838,-462.05407639,5.4e-05,2]
[408146737,1773174642847,-600.0,5.591e-05,2]
[408146739,1773174642856,-15425.37987371,5.606e-05,2]
[408146741,1773174642865,-1000.0,5.711e-05,2]
[408146743,1773174642874,-500.0,5.711e-05,2]
[408146745,1773174642883,-642.25763778,5.811e-05,2]
[408146747,1773174642892,-720.0,6.15e-05,2]
[408146749,1773174642900,-1500.0,6.258e-05,2]
[408146750,1773174642909,-218.50456471,6.398e-05,2]
[408146752,1773174642918,-864.0,6.765e-05,2]
[408146754,1773174642928,-500.0,6.806e-05,2]
[408146756,1773174642937,-325.08192866,6.892e-05,2]
[408146758,1773174642946,-1000.0,7.442e-05,2]
[408146760,1773174642955,-26938.29410294,7.618e-05,2]
[408146762,1773174642964,-500.0,7.864e-05,2]
[408146764,1773174642973,-2185.0,7.904e-05,2]
[408146766,1773174642985,-436.0,7.904e-05,2]
[408146768,1773174642995,-436.0,7.904e-05,2]
[408146770,1773174643004,-733.0,7.904e-05,2]
[408146772,1773174643013,-150.495,8.023e-05,2]
[408146774,1773174643023,-150.572,8.023e-05,2]
[408146777,1773174643032,-250.0,8.023e-05,2]
[408146779,1773174643041,-150.303,8.023e-05,2]
[408146782,1773174643051,-1377.31938579,8.037e-05,2]
[408146784,1773174643062,-1000.0,8.186e-05,2]
[408146786,1773174643071,-244.0,8.186e-05,2]
[408146788,1773174643080,-500.0,8.219e-05,2]
[408146790,1773174643090,-215.27989569,8.219e-05,2]
[408146792,1773174643099,-1949.3397031,8.219e-05,2]
[408146794,1773174643108,-500.0,8.257e-05,2]
[408146796,1773174643117,-374.67069743,8.892e-05,2]
[408146798,1773174643126,-2066.50701074,9e-05,2]
[408146800,1773174643135,-1000.0,9.005e-05,2]
[408146802,1773174643145,-492.0,9.005e-05,2]
[408146804,1773174643156,-351.0,9.611e-05,2]
[408146806,1773174643165,-165.1160394,9.611e-05,2]
[408146808,1773174643175,-500.0,9.695e-05,2]
[408146810,1773174643184,-500.0,9.695e-05,2]
[408146812,1773174643194,-500.0,9.695e-05,2]
[408146814,1773174643203,-500.0,9.695e-05,2]
[408146816,1773174643213,-151.0,9.695e-05,2]
[408146818,1773174643222,-500.0,9.695e-05,2]
[408146820,1773174643231,-156.587,9.695e-05,2]
[408146822,1773174643240,-500.0,9.695e-05,2]
[408146824,1773174643249,-162.380719,9.695e-05,2]
[408146825,1773174643259,-500.0,9.695e-05,2]
[408146827,1773174643268,-168.3888056,9.695e-05,2]
[408146829,1773174643277,-500.0,9.695e-05,2]
[408146831,1773174643286,-174.61919141,9.695e-05,2]
[408146833,1773174643295,-500.0,9.695e-05,2]
[408146835,1773174643303,-181.08010149,9.695e-05,2]
[408146837,1773174643313,-500.0,9.695e-05,2]
[408146839,1773174643322,-187.78006525,9.695e-05,2]
[408146841,1773174643331,-500.0,9.695e-05,2]
[408146843,1773174643342,-194.72792766,9.695e-05,2]
[408146845,1773174643352,-201.93286099,9.695e-05,2]
[408146847,1773174643361,-500.0,9.695e-05,2]
[408146849,1773174643370,-209.40437684,9.695e-05,2]
[408146851,1773174643379,-217.15233878,9.695e-05,2]
[408146853,1773174643388,-225.18697532,9.695e-05,2]
[408146855,1773174643398,-233.51889341,9.695e-05,2]
[408146857,1773174643408,-242.15909246,9.695e-05,2]
[408146859,1773174643417,-500.0,9.695e-05,2]
[408146860,1773174643426,-251.11897888,9.695e-05,2]
[408146862,1773174643435,-500.0,9.695e-05,2]
[408146863,1773174643444,-260.4103811,9.695e-05,2]
[408146864,1773174643453,-500.0,9.695e-05,2]
[408146865,1773174643462,-270.0455652,9.695e-05,2]
[408146866,1773174643472,-500.0,9.695e-05,2]
[408146867,1773174643481,-280.03725112,9.695e-05,2]
[408146868,1773174643490,-290.39862941,9.695e-05,2]
[408146869,1773174643502,-301.1433787,9.695e-05,2]
[408146870,1773174643521,-500.0,9.695e-05,2]
[408146871,1773174643534,-500.0,9.695e-05,2]
[408146872,1773174643544,-1000.0,9.905e-05,2]
[408146873,1773174643554,-791.0,9.905e-05,2]
[408146874,1773174643565,-26938.29410294,0.00010153,2]
[408146875,1773174643575,-1000.0,0.000102,2]
[408146876,1773174643585,-186.6573915,0.0001087,2]
[408146877,1773174643594,-424.25946621,0.00010892,2]
[408146878,1773174643604,-1000.0,0.00010896,2]
[408146879,1773174643614,-1000.0,0.00010896,2]
[408146880,1773174643623,-189.867,0.00010904,2]
[408146881,1773174643633,-436.0,0.00010904,2]
[408146882,1773174643643,-733.0,0.00010904,2]
[408146883,1773174643653,-1000.0,0.00010958,2]
[408146884,1773174643663,-400.0,0.00011,4]
[408146885,1773174643673,-150.0,0.00011023,2]
[408146887,1773174643683,-150.0,0.00011023,2]
[408146889,1773174643692,-1000.0,0.00011985,2]
[408146891,1773174643702,-1000.0,0.00011985,2]
[408146892,1773174643712,-579.0,0.00011985,2]
[408146893,1773174643722,-26938.29410294,0.00012687,2]
[408146895,1773174643732,-473.84823499,0.00012892,2]
[408146896,1773174643743,-200.0,0.00013,2]
[408146897,1773174643753,-1000.0,0.00013184,2]
[408146898,1773174643762,-1000.0,0.00013184,2]
[408146899,1773174643772,-1000.0,0.00013184,2]
[408146900,1773174643783,-1590.41360697,0.00013328,2]
[408146901,1773174643793,-30861.55700113,0.0001369,7]
[408146902,1773174643802,-19506.22541061,0.0001369,7]
[408146903,1773174643817,-185118.28504538,0.0001369,7]
[408146904,1773174643828,-1613.98255108,0.0001369,7]
[408146910,1773174644487,-1396.78336769,5.082e-05,2]
[408146915,1773174645600,-6137.08741774,5.082e-05,2]
[408146927,1773175751133,-5000.0,3.476e-05,2]
[408146928,1773175751153,-243.23483678,3.494e-05,2]
[408146929,1773175751173,-300.0,3.51e-05,2]
[408146930,1773175751194,-5000.0,3.511e-05,2]
[408146931,1773175751214,-1200.0,3.581e-05,2]
[408146932,1773175751234,-300.0,3.635e-05,2]
[408146933,1773175751253,-300.0,3.635e-05,2]
[408146934,1773175751272,-300.0,3.635e-05,2]
[408146935,1773175751291,-188.8165947,3.692e-05,2]
[408146936,1773175751312,-797.0,3.939e-05,2]
[408146937,1773175751333,-300.0,3.998e-05,2]
[408146938,1773175751352,-178.036025,4.56e-05,2]
[408146939,1773175751379,-118325.2992317,4.8e-05,2]
[408146940,1773175770105,-1695.13459258,4.704e-05,2]
[408146941,1773175770124,-5000.0,4.752e-05,2]
[408146942,1773175770146,-84519.04904618,4.8e-05,2]
[408146957,1773175831674,-987.84927605,4.752e-05,2]
[408146959,1773175831685,-1163.20743793,4.752e-05,2]
[408146963,1773175831730,-619.55233372,4.752e-05,2]
[408146967,1773175831787,-775.69895365,4.752e-05,2]
[408147005,1773175837994,-474.0304009,4.752e-05,2]
[408147577,1773175845748,-806.28508092,4.752e-05,2]
[408147578,1773175845859,-173.37651683,4.752e-05,2]
[408147579,1773175845869,-3338.12348317,4.8e-05,2]
[408147581,1773176424889,-765.61304043,3.743e-05,2]
[408147582,1773176424903,-4234.38695957,3.743e-05,2]
[408147583,1773176424914,-243.47471175,3.762e-05,2]
[408147584,1773176424924,-300.0,3.78e-05,2]
[408147585,1773176424934,-222.13832868,3.78e-05,2]
[408147587,1773176826122,-5000.0,3.631e-05,2]
[408147588,1773176826143,-5000.0,3.668e-05,2]
[408147589,1773176826166,-300.0,3.742e-05,2]
[408147590,1773176826188,-244.20861774,3.743e-05,2]
[408147591,1773176826208,-1200.0,3.78e-05,2]
[408147592,1773176826228,-10000.0,3.781e-05,2]
[408147593,1773176826248,-420.0,4.116e-05,2]
[408147594,1773176826268,-480.0,4.158e-05,2]
[408147595,1773176826288,-500.0,4.633e-05,2]
[408147596,1773176826308,-500.0,4.633e-05,2]
[408147597,1773176826330,-500.0,4.633e-05,2]
[408147598,1773176826350,-500.0,4.633e-05,2]
[408147599,1773176826370,-500.0,4.633e-05,2]
[408147600,1773176826393,-500.0,4.633e-05,2]
[408147601,1773176826416,-58123.91921377,4.652e-05,2]
[408147602,1773176848128,-1365.20289059,4.586e-05,2]
[408147603,1773176848151,-500.0,4.633e-05,2]
[408147604,1773176848175,-115943.863279,4.652e-05,2]
[408147635,1773177031814,-388.02580248,4.5e-05,2]
[408147744,1773177038222,-3611.97419752,4.5e-05,2]
[408147747,1773177038234,-239.32444539,4.52e-05,2]
[408147749,1773177038248,-500.0,4.533e-05,2]
[408147752,1773177038263,-1200.0,4.539e-05,2]
[408147754,1773177038273,-3756.27111615,4.54e-05,2]
[408147757,1773177038289,-1243.72888385,4.54e-05,2]
[408147759,1773177038301,-300.0,4.551e-05,2]
[408147761,1773177038313,-300.0,4.551e-05,2]
[408147764,1773177038325,-300.0,4.551e-05,2]
[408147766,1773177038341,-80790.25655641,4.552e-05,2]
[408147988,1773177040746,-1038.44380678,4.507e-05,2]
[408147990,1773177040758,-12051.45243428,4.552e-05,2]
[408148207,1773177043163,-806.99127554,4.507e-05,2]
[408148394,1773177046070,-4193.00872446,4.507e-05,2]
[408148395,1773177046079,-1120.53580726,4.552e-05,2]
[408148396,1773177046091,-2540.34592144,4.552e-05,2]
[408148397,1773177046136,-2581.11914046,4.552e-05,2]
[408148446,1773178155147,-5000.0,2.894e-05,2]
[408148447,1773178155176,-5000.0,2.923e-05,2]
[408148448,1773178155211,-300.0,2.952e-05,2]
[408148449,1773178155244,-2599.63578529,2.953e-05,2]
[408148453,1773178224074,-1172.81982744,2.923e-05,2]
[408148662,1773178240586,-2349.14970205,2.894e-05,2]
[408148942,1773178243325,-2650.85029795,2.894e-05,2]
[408148944,1773178243335,-185.22447771,2.923e-05,2]
[408148949,1773178243382,-3641.95569485,2.923e-05,2]
[408148950,1773178243391,-256.28054813,2.998e-05,2]
[408148952,1773178243400,-1200.0,3.041e-05,2]
[408148954,1773178243409,-300.0,3.072e-05,2]
[408148956,1773178243418,-300.0,3.072e-05,2]
[408148957,1773178243428,-300.0,3.072e-05,2]
[408148959,1773178243437,-300.0,3.072e-05,2]
[408148961,1773178243447,-188.8165947,3.074e-05,2]
[408148963,1773178243456,-1680.0,3.345e-05,2]
[408148964,1773178243465,-483.49642083,3.356e-05,2]
[408148968,1773178243494,-357.36551117,3.356e-05,2]
[408148969,1773178243504,-409.0,3.379e-05,2]
[408148971,1773178243513,-420.0,3.379e-05,2]
[408148973,1773178243523,-420.0,3.379e-05,2]
[408148975,1773178243532,-840.861932,3.498e-05,2]
[408148977,1773178243541,-840.861932,3.639e-05,2]
[408148978,1773178243550,-3504.5866443,3.664e-05,2]
[408148982,1773178243560,-2351.0,3.68e-05,2]
[408148984,1773178243569,-587.0,3.717e-05,2]
[408148986,1773178243578,-530.0,3.717e-05,2]
[408148988,1773178243587,-840.861932,3.78e-05,2]
[408148989,1773178243596,-840.861932,3.921e-05,2]
[408148991,1773178243605,-250.0,3.999e-05,2]
[408148993,1773178243614,-1681.17641238,4.048e-05,2]
[408149052,1773178246297,-1739.089,4.008e-05,2]
[408149053,1773178246308,-3260.911,4.008e-05,2]
[408149054,1773178246326,-326.82358762,4.048e-05,2]
[408149055,1773178246347,-840.861932,4.063e-05,2]
[408149056,1773178246365,-500.0,4.633e-05,2]
[408149057,1773178246376,-500.0,4.633e-05,2]
[408149058,1773178246387,-500.0,4.633e-05,2]
[408149059,1773178246398,-500.0,4.633e-05,2]
[408149060,1773178246409,-302.41104679,4.998e-05,2]
[408149061,1773178246419,-1823.8579548,5e-05,2]
[408149062,1773178246431,-477.93646819,5e-05,2]
[408149063,1773178246441,-1046.7967211,5e-05,2]
[408149064,1773178246451,-600.0,5.183e-05,2]
[408149065,1773178246460,-720.0,5.701e-05,2]
[408149066,1773178246470,-3652.43990613,5.854e-05,2]
[408149067,1773178246480,-864.0,6.272e-05,2]
[408149068,1773178246491,-1000.0,6.899e-05,2]
[408149069,1773178246505,-348.54154545,6.998e-05,2]
[408149070,1773178246518,-1213.94159342,7.12e-05,2]
[408149071,1773178246531,-1000.0,7.589e-05,2]
[408149072,1773178246546,-244.0,7.589e-05,2]
[408149073,1773178246558,-500.69592699,8.219e-05,2]
[408149074,1773178246571,-1000.0,8.347e-05,2]
[408149075,1773178246583,-492.0,8.347e-05,2]
[408149076,1773178246596,-1699.73132125,8.417e-05,2]
[408149077,1773178246619,-5609.87248753,8.417e-05,2]
[408149078,1773178246629,-394.67204411,8.998e-05,2]
[408149079,1773178246640,-763.0,9.182e-05,2]
[408149080,1773178246652,-7359.08869165,9.271e-05,2]
[408149081,1773178246663,-192.7144246,9.543e-05,2]
[408149082,1773178246671,-2496.93752576,0.00010126,2]
[408149141,1773178757450,2191.25,0.000102,120]
[408149185,1773178976151,1189.0,2.001e-05,2]
[408149216,1773179432260,-1297.01723482,3.591e-05,2]
[408149217,1773179432321,-2966.91,3.591e-05,2]
[408149305,1773179438429,-736.07276518,3.591e-05,2]
[408149307,1773179438438,-5000.0,3.627e-05,2]
[408149309,1773179438447,-1200.0,3.7e-05,2]
[408149311,1773179438457,-300.0,3.716e-05,2]
[408149313,1773179438466,-300.0,3.716e-05,2]
[408149315,1773179438475,-300.0,3.716e-05,2]
[408149317,1773179438485,-240.56024475,3.72e-05,2]
[408149319,1773179438494,-1680.0,4.07e-05,2]
[408149321,1773179438503,-420.0,4.088e-05,2]
[408149323,1773179438512,-4894.0479308,4.091e-05,2]
[408149329,1773179438558,-114.30591216,4.091e-05,2]
[408149332,1773179438578,-527.18973794,4.091e-05,2]
[408149556,1773179440995,-9608.14129258,4.091e-05,2]
[408149981,1773179445558,-3896.11847603,4.091e-05,2]
[408150000,1773179445732,-499.48143251,4.091e-05,2]
[408150002,1773179445744,-564.19645058,4.091e-05,2]
[408150005,1773179445755,-242.79482496,4.496e-05,2]
[408150068,1773179446321,-344.20517504,4.496e-05,2]
[408150070,1773179446330,-250.0,4.841e-05,2]
[408150072,1773179446341,-823.0,4.946e-05,2]
[408150074,1773179446352,-716.0,5.441e-05,2]
[408150076,1773179446361,-283.86108881,5.72e-05,2]
[408150078,1773179446370,-1038.44380678,5.942e-05,2]
[408150080,1773179446379,-500.0,5.983e-05,2]
[408150082,1773179446390,-2841.31242938,6.002e-05,2]
[408150084,1773179446401,-3140.07511611,6.002e-05,2]
[408150086,1773179446412,-99868.5661238,6.002e-05,2]
[408150089,1773179446429,-1992.05983524,6.002e-05,2]
[408150092,1773179446444,-4717.07435341,6.002e-05,2]
[408150357,1773180043096,-4096.75568745,5.483e-05,2]
[408150403,1773180632423,-2726.4262545,4.958e-05,2]
[408150513,1773180638597,-1000.0,4.958e-05,2]
[408150987,1773180643622,-1273.5737455,4.958e-05,2]
[408150988,1773180643631,-5000.0,5.008e-05,2]
[408150989,1773180643640,-501.51528959,5.059e-05,2]
[408150990,1773180643649,-235.8376441,5.085e-05,2]
[408150991,1773180643658,-1200.0,5.161e-05,2]
[408150992,1773180643667,-5132.44306512,5.417e-05,2]
[408150993,1773180643676,-5959.04845805,5.517e-05,2]
[408151254,1773180646495,-4635.07326687,5.517e-05,2]
[408151256,1773180646504,-500.0,5.538e-05,2]
[408151258,1773180646513,-211.30106561,5.538e-05,2]
[408151259,1773180646522,-10053.83351618,5.617e-05,2]
[408151262,1773180646534,-1833.82979439,5.617e-05,2]
[408151264,1773180646543,-458.41597788,5.7e-05,2]
[408151266,1773180646552,-12633.09416853,5.717e-05,2]
[408151268,1773180646562,-12340.28816799,5.744e-05,2]
[408151270,1773180646571,-13181.20489632,5.8e-05,2]
[408151272,1773180646580,-59406.37157023,5.802e-05,2]
[408151274,1773180646594,-12016.39653973,5.802e-05,2]
[408151926,1773181771590,-2784.78214063,4.098e-05,2]
[408151927,1773181771611,-301.19078116,4.139e-05,2]
[408151967,1773181831643,-5000.0,4.057e-05,2]
[408151969,1773181831654,-5000.0,4.098e-05,2]
[408152016,1773181831664,-236.61222344,4.191e-05,2]
[408152021,1773181832111,-300.0,4.243e-05,2]
[408152025,1773181832134,-300.0,4.307e-05,2]
[408152027,1773181832144,-642.322026,4.352e-05,2]
[408152029,1773181832153,-642.322026,4.535e-05,2]
[408152031,1773181832162,-642.322026,4.718e-05,2]
[408152033,1773181832172,-164.317399,4.785e-05,2]
[408152035,1773181832181,-642.322026,4.902e-05,2]
[408152037,1773181832191,-642.322026,5.085e-05,2]
[408152039,1773181832201,-642.322026,5.268e-05,2]
[408152041,1773181832210,-445.11571951,5.3e-05,2]
[408152043,1773181832219,-275.503348,5.313e-05,2]
[408152045,1773181832228,-500.0,5.313e-05,2]
[408152047,1773181832237,-50424.519154,5.338e-05,2]
[408152049,1773181832249,-347.5,5.338e-05,2]
[408152051,1773181832260,-361.63977585,5.338e-05,2]
[408152350,1773181837854,-544.1067633,5.338e-05,2]
[408152599,1773181840317,-3596.38304747,5.285e-05,2]
[408152856,1773181842824,-288.91349361,5.285e-05,2]
[408152858,1773181842833,-3420.32013369,5.338e-05,2]
[408152860,1773181842845,-9863.94090529,5.338e-05,2]
[408152865,1773181842883,-25533.38249423,5.338e-05,2]
[408152867,1773181842894,-1983.165,5.338e-05,2]
[408152915,1773181843360,-5000.0,5.338e-05,2]
[408153024,1773181846186,-29636.81405601,5.338e-05,2]
[408153025,1773181846198,-3239.46749714,5.338e-05,2]
[408179213,1773182396449,-1728.84683039,4.303e-05,2]
[408179214,1773182396478,-5000.0,4.346e-05,2]
[408179215,1773182396506,-237.59492912,4.412e-05,2]
[408179216,1773182396533,-574.1262434,4.478e-05,2]
[408179217,1773182531111,-300.0,5.137e-05,2]
[408179235,1773182582211,300.0,5.137e-05,2]
[408179236,1773182603273,5000.0,5.138e-05,2]
[408179237,1773182626028,5000.0,5.138e-05,2]
[408179238,1773182647991,4018.86399418,5.138e-05,2]
[408179239,1773182648013,981.13600582,5.138e-05,2]
[408179240,1773182670845,5000.0,5.138e-05,2]
[408179241,1773182693929,5000.0,5.138e-05,2]
[408179242,1773182702096,300.0,5.137e-05,2]
[408179243,1773182716945,5000.0,5.138e-05,2]
[408179244,1773182732461,13718.86399418,5.087e-05,2]
[408179246,1773182790974,-5000.0,5.036e-05,2]
[408179249,1773182805187,5000.0,5.038e-05,2]
[408179259,1773182829652,5000.0,5.038e-05,2]
[408179280,1773182893253,-5000.0,5.011e-05,2]
[408179281,1773182898168,5000.0,4.961e-05,2]
[408179370,1773182925277,5000.0,5.011e-05,2]
[408179376,1773183001509,-5000.0,5.011e-05,2]
[408179382,1773183012922,5000.0,5.011e-05,2]
[408179414,1773183031822,-232.84303054,5.062e-05,2]
[408179415,1773183031831,-6281.13600582,5.087e-05,2]
[408179416,1773183031841,-4125.63774561,5.087e-05,2]
[408179427,1773183035723,5000.0,5.011e-05,2]
[408179433,1773183037914,-1886.71502502,5.087e-05,2]
[408179434,1773183037928,-758.50493675,5.087e-05,2]
[408179466,1773183042980,-962.48900003,5.087e-05,2]
[408179491,1773183045942,-970.0,5.087e-05,2]
[408179508,1773183643728,-286.33258001,4.556e-05,2]
[408179566,1773184172092,-527.25381245,3.946e-05,2]
[408179567,1773184172115,-5000.0,3.986e-05,2]
[408179568,1773184172135,-233.92683317,4.006e-05,2]
[408179569,1773184172156,-300.0,4.025e-05,2]
[408179570,1773184172176,-3060.23771826,4.026e-05,2]
[408179600,1773184231935,-1430.06503845,3.946e-05,2]
[408179602,1773184231944,-5000.0,3.986e-05,2]
[408179604,1773184231953,-177.3370796,4.191e-05,2]
[408179606,1773184231962,-1200.0,4.911e-05,2]
[408179608,1773184231971,-300.0,4.912e-05,2]
[408179610,1773184231980,-300.0,4.912e-05,2]
[408179612,1773184231989,-331.9898631,4.913e-05,2]
[408179614,1773184232000,-168.0101369,4.913e-05,2]
[408179616,1773184232009,-162.03207208,4.913e-05,2]
[408179618,1773184232022,-337.96792792,4.913e-05,2]
[408179620,1773184232031,-129.5584983,4.913e-05,2]
[408179622,1773184232041,-370.4415017,4.913e-05,2]
[408179624,1773184232051,-500.0,4.913e-05,2]
[408179626,1773184232060,-509.11356384,4.913e-05,2]
[408179628,1773184232069,-500.0,4.913e-05,2]
[408179630,1773184232078,-262.5338977,4.913e-05,2]
[408179707,1773184238138,-5000.0,4.863e-05,2]
[408179709,1773184238147,-237.4661023,4.913e-05,2]
[408179711,1773184238157,-500.0,4.913e-05,2]
[408179713,1773184238166,-22879.09273623,4.938e-05,2]
[408179715,1773184238177,-777.43067162,4.938e-05,2]
[408179717,1773184238188,-2721.75168527,4.938e-05,2]
[408180256,1773185239091,-224.21739096,4.635e-05,2]